bitfinex/quotes_SOLUSD_20260306
["timestamp","ask_amount","ask_price","bid_price","bid_amount"]
[1772814321692,0.73013412,84.697,84.643,0.61206899]
[1772814323301,0.73013412,84.689,84.637,41.35307253]
[1772814323591,0.73013412,84.687,84.637,11.81516358]
[1772814323775,0.73013412,84.687,84.616,3.69383402]
[1772814323776,0.73013412,84.669,84.623,11.81711827]
[1772814323975,0.73013412,84.669,84.624,0.61206899]
[1772814325571,0.73013412,84.669,84.626,0.61206899]
[1772814325572,0.14216157,84.667,84.626,0.61206899]
[1772814325777,0.14216157,84.665,84.626,0.61206899]
[1772814326185,0.73013412,84.665,84.626,0.61206899]
[1772814328599,0.58797255,84.663,84.627,11.81655972]
[1772814328978,0.58797255,84.663,84.627,12.42862871]
[1772814329183,0.58797255,84.663,84.628,0.61206899]
[1772814330505,0.58797255,84.663,84.63,0.61206899]
[1772814330694,11.81139563,84.664,84.63,0.61206899]
[1772814330903,11.81080289,84.669,84.63,0.61206899]
[1772814331585,12.39877544,84.669,84.63,0.61206899]
[1772814331906,0.14216157,84.665,84.629,11.81628047]
[1772814332088,0.62385139,84.664,84.629,11.81628047]
[1772814332782,0.62385139,84.663,84.629,0.62661869]
[1772814332986,0.62385139,84.672,84.629,0.62661869]
[1772814333684,0.62385139,84.67,84.621,0.62661869]
[1772814333903,0.62385139,84.664,84.621,0.62661869]
[1772814334600,0.62385139,84.664,84.616,0.62661869]
[1772814335007,0.62385139,84.662,84.619,0.62661869]
[1772814336594,0.62385139,84.66,84.617,41.3628467]
[1772814336805,0.62385139,84.654,84.617,41.3628467]
[1772814337581,11.81293043,84.653,84.618,0.62661869]
[1772814337789,0.62385139,84.652,84.618,0.62661869]
[1772814339200,0.62385139,84.669,84.618,0.62661869]
[1772814339509,0.62385139,84.665,84.618,0.62661869]
[1772814339712,0.62385139,84.663,84.62,0.62661869]
[1772814339898,0.62385139,84.661,84.619,11.81767688]
[1772814340099,0.62385139,84.655,84.619,11.81767688]
[1772814340499,0.62385139,84.655,84.619,41.98848777]
[1772814341293,0.62385139,84.655,84.62,0.62661869]
[1772814341817,0.62385139,84.653,84.61,0.62661869]
[1772814342006,0.62385139,84.645,84.61,0.62661869]
[1772814342403,0.62385139,84.643,84.605,11.8196324]
[1772814342607,0.62385139,84.653,84.606,0.62661869]
[1772814342810,0.14216157,84.646,84.606,0.62661869]
[1772814343001,11.81279088,84.654,84.607,0.62661869]
[1772814343202,0.62385139,84.653,84.607,0.62661869]
[1772814344620,12.43692137,84.652,84.609,0.62661869]
[1772814345192,0.14216157,84.657,84.609,0.62661869]
[1772814345515,0.76601296,84.657,84.609,0.62661869]
[1772814346897,0.76601296,84.655,84.611,0.62661869]
[1772814349008,0.62385139,84.653,84.612,11.81865456]
[1772814349213,0.62385139,84.653,84.612,41.99190966]
[1772814349419,0.62385139,84.653,84.612,12.44527325]
[1772814349734,0.62385139,84.649,84.6,0.62661869]
[1772814349896,0.62385139,84.645,84.601,11.82019125]
[1772814350312,0.62385139,84.639,84.596,11.82075999]
[1772814350526,0.62385139,84.639,84.565,104.34216157]
[1772814350527,0.14216157,84.618,84.567,0.62661869]
[1772814350835,0.14216157,84.618,84.519,47.32611319]
[1772814350836,0.62385139,84.589,84.531,0.62661869]
[1772814351118,0.62385139,84.585,84.534,0.62661869]
[1772814351907,41.37653831,84.589,84.532,41.40443854]
[1772814351908,0.62385139,84.577,84.532,41.40443854]
[1772814352225,0.14216157,84.587,84.533,0.62661869]
[1772814352403,0.76601296,84.587,84.534,0.62661869]
[1772814353012,0.76601296,84.585,84.537,0.62661869]
[1772814353900,0.14216157,84.585,84.537,0.62661869]
[1772814354122,0.62385139,84.594,84.537,0.62661869]
[1772814354353,0.62385139,84.603,84.54,0.62661869]
[1772814354514,0.62385139,84.603,84.544,0.62661869]
[1772814354698,0.62385139,84.613,84.546,0.62661869]
[1772814354907,0.62385139,84.631,84.553,0.14216157]
[1772814355121,0.61269279,84.628,84.562,0.59962471]
[1772814355323,0.61269279,84.628,84.564,0.59962471]
[1772814355512,41.35698164,84.629,84.564,0.59962471]
[1772814355513,0.61269279,84.625,84.564,0.59962471]
[1772814357025,0.61269279,84.625,84.568,3.69383402]
[1772814357323,0.61269279,84.647,84.572,0.59962471]
[1772814357501,0.61269279,84.646,84.573,0.14216157]
[1772814357711,0.61269279,84.636,84.574,0.59962471]
[1772814357908,0.61269279,84.634,84.574,0.59962471]
[1772814359933,0.61269279,84.632,84.577,0.59962471]
[1772814360434,11.95746475,84.636,84.577,0.59962471]
[1772814360632,0.61269279,84.635,84.577,0.59962471]
[1772814361128,0.75485436,84.629,84.577,0.59962471]
[1772814361710,0.61269279,84.629,84.577,0.59962471]
[1772814361914,0.61269279,84.629,84.58,0.60399992]
[1772814362429,0.58360249,84.627,84.58,0.60399992]
[1772814362613,0.58360249,84.625,84.58,0.60399992]
[1772814363530,0.58360249,84.623,84.578,11.82340561]
[1772814363718,0.58360249,84.615,84.578,11.82340561]
[1772814364028,11.8183752,84.614,84.579,0.60399992]
[1772814364535,0.58360249,84.613,84.579,0.60399992]
[1772814364916,5.2512604,84.649,84.579,0.60399992]
[1772814365117,10.96649407,84.66,84.582,0.60399992]
[1772814365313,4.82477569,84.669,84.582,0.60399992]
[1772814365617,0.42648471,84.668,84.584,0.60399992]
[1772814366021,0.42648471,84.666,84.589,0.60399992]
[1772814366222,0.42648471,84.666,84.588,3.69383402]
[1772814366223,0.28432314,84.658,84.59,0.60399992]
[1772814366827,0.27559528,84.656,84.59,0.60399992]
[1772814367117,0.14216157,84.654,84.59,0.60399992]
[1772814367322,0.27559528,84.652,84.59,0.60399992]
[1772814367523,0.27617791,84.65,84.59,0.60399992]
[1772814367724,0.27617791,84.648,84.59,0.60399992]
[1772814368017,0.27617791,84.648,84.553,1.18269014]
[1772814368018,0.27617791,84.636,84.592,0.60399992]
[1772814368223,0.27617791,84.634,84.592,0.60399992]
[1772814370238,0.41948844,84.632,84.594,0.60399992]
[1772814370422,0.27732687,84.632,84.594,0.60399992]
[1772814370847,0.14216157,84.644,84.594,0.60399992]
[1772814371142,0.27789115,84.643,84.594,0.60399992]
[1772814371329,0.27789115,84.641,84.594,0.60399992]
[1772814371533,0.14216157,84.642,84.58,4.07296383]
[1772814371534,0.27809381,84.628,84.584,11.82253246]
[1772814371837,0.27809381,84.627,84.584,11.82253246]
[1772814372031,0.27809381,84.626,84.584,11.82253246]
[1772814372243,0.27809381,84.623,84.584,11.82253246]
[1772814372430,0.27809381,84.622,84.584,11.82253246]
[1772814372740,0.42044657,84.621,84.584,11.82253246]
[1772814373038,0.278285,84.62,84.584,11.82253246]
[1772814373441,0.14216157,84.619,84.58,15.61169428]
[1772814373644,0.27847315,84.617,84.58,15.61169428]
[1772814373844,0.14216157,84.616,84.581,0.60399992]
[1772814374141,0.27847315,84.643,84.581,0.60399992]
[1772814374351,0.70495786,84.641,84.583,0.60399992]
[1772814374542,0.2786504,84.64,84.583,0.60399992]
[1772814376030,0.2786504,84.64,84.584,0.60399992]
[1772814376430,0.27883382,84.637,84.587,0.60399992]
[1772814378049,0.14216157,84.638,84.587,0.60399992]
[1772814378855,0.14216157,84.638,84.589,0.60399992]
[1772814380028,0.27954721,84.637,84.589,0.60399992]
[1772814380552,12.09376646,84.645,84.59,0.60399992]
[1772814380724,0.27971956,84.644,84.593,0.60399992]
[1772814381231,0.27971956,84.642,84.593,0.60399992]
[1772814384936,0.27971956,84.642,84.595,0.88832306]
[1772814385141,0.28039274,84.64,84.596,0.60399992]
[1772814386355,11.81410929,84.645,84.596,0.60399992]
[1772814386541,0.28071503,84.644,84.596,0.60399992]
[1772814386737,0.28071503,84.644,84.594,41.37409272]
[1772814386738,0.4228766,84.639,84.594,41.37409272]
[1772814386949,0.28071503,84.638,84.595,0.60399992]
[1772814387151,0.28071503,84.635,84.596,11.82088987]
[1772814387449,0.28071503,84.635,84.596,41.97711448]
[1772814387653,0.28071503,84.635,84.597,0.60399992]
[1772814388943,0.28102966,84.633,84.598,41.97613637]
[1772814389138,0.28102966,84.633,84.599,0.60399992]
[1772814389455,0.14216157,84.637,84.599,0.60399992]
[1772814389932,0.14216157,84.635,84.599,0.60399992]
[1772814390131,11.45746475,84.636,84.6,0.60399992]
[1772814390551,0.28119123,84.635,84.6,0.60399992]
[1772814391340,0.28134437,84.633,84.591,0.60399992]
[1772814391739,0.28134437,84.633,84.593,0.59201267]
[1772814392147,0.42350594,84.633,84.593,0.59201267]
[1772814392653,0.42350594,84.633,84.595,0.59201267]
[1772814392856,0.28178846,84.631,84.595,0.59201267]
[1772814393161,0.28178846,84.64,84.595,0.59201267]
[1772814393339,0.28178846,84.657,84.595,0.59201267]
[1772814393531,0.28194229,84.651,84.595,0.59201267]
[1772814394846,0.28207742,84.648,84.597,0.59201267]
[1772814396552,0.28235336,84.638,84.587,0.59201267]
[1772814396858,0.28235336,84.635,84.588,11.82200784]
[1772814397157,0.28235336,84.635,84.588,12.41402051]
[1772814397653,0.28250258,84.619,84.58,11.82308683]
[1772814397851,0.28250258,84.617,84.571,0.59201267]
[1772814398151,0.28250258,84.607,84.566,0.59201267]
[1772814398354,0.28250258,84.599,84.55,0.59201267]
[1772814398555,0.28264179,84.588,84.55,0.59201267]
[1772814398755,0.42480336,84.587,84.55,0.59201267]
[1772814399052,4.82477569,84.608,84.54,11.82872013]
[1772814399053,0.42480336,84.601,84.552,0.59201267]
[1772814399452,10.96649407,84.62,84.552,0.59201267]
[1772814399453,29.82591814,84.623,84.555,0.59201267]
[1772814399759,0.14216157,84.621,84.557,0.59201267]
[1772814400553,29.53881533,84.635,84.557,0.59201267]
[1772814400554,0.28291432,84.639,84.557,0.59201267]
[1772814400746,0.28291432,84.659,84.565,0.59201267]
[1772814400951,0.28291432,84.659,84.574,0.14216157]
[1772814400952,0.28291432,84.655,84.574,0.14216157]
[1772814401151,0.42507589,84.653,84.577,0.59201267]
[1772814401350,0.14216157,84.651,84.577,0.59201267]
[1772814401546,29.53132466,84.656,84.577,0.59201267]
[1772814401547,0.28291432,84.65,84.577,0.59201267]
[1772814401947,0.28291432,84.65,84.582,0.59201267]
[1772814402146,0.28304223,84.647,84.583,0.59201267]
[1772814403139,0.28317624,84.638,84.583,0.59201267]
[1772814405557,0.28356778,84.635,84.585,0.59201267]
[1772814407448,0.42598348,84.629,84.585,0.59201267]
[1772814407653,0.28382191,84.626,84.587,0.59201267]
[1772814407965,0.14216157,84.629,84.587,0.59201267]
[1772814408153,11.81642009,84.628,84.587,0.59201267]
[1772814408561,0.14216157,84.629,84.587,0.59201267]
[1772814409867,0.14216157,84.629,84.589,0.59201267]
[1772814410157,0.28407194,84.631,84.589,0.59201267]
[1772814410865,0.28419544,84.628,84.589,0.59201267]
[1772814412069,0.14216157,84.629,84.591,0.59201267]
[1772814412070,11.81655972,84.627,84.591,0.59201267]
[1772814412278,0.28431791,84.626,84.59,11.82172833]
[1772814413474,0.28431791,84.626,84.586,11.82221786]
[1772814414357,0.28457193,84.623,84.586,0.59201267]
[1772814414548,0.28457193,84.623,84.579,0.59201267]
[1772814414772,0.28468468,84.618,84.574,0.59201267]
[1772814416888,0.14216157,84.624,84.576,0.63327868]
[1772814417754,0.14216157,84.624,84.577,41.38240892]
[1772814417953,0.14216157,84.624,84.578,0.63327868]
[1772814419551,0.2854008,84.629,84.58,0.63327868]
[1772814420272,0.14216157,84.63,84.58,0.63327868]
[1772814420669,0.28551911,84.629,84.58,0.63327868]
[1772814421976,0.28575819,84.626,84.582,0.59931924]
[1772814423770,11.81683899,84.625,84.583,41.37947341]
[1772814423960,0.42813337,84.624,84.584,0.59931924]
[1772814424284,0.2859718,84.632,84.584,0.59931924]
[1772814424467,0.2859718,84.635,84.584,0.59931924]
[1772814424662,0.28607736,84.628,84.573,0.59931924]
[1772814424861,0.42823893,84.627,84.576,0.59931924]
[1772814425065,112.7411524,84.67,84.579,0.59931924]
[1772814425066,0.28607736,84.635,84.579,0.59931924]
[1772814425266,0.28607736,84.632,84.579,0.59931924]
[1772814425573,0.28618221,84.63,84.579,0.59931924]
[1772814425782,0.28618221,84.628,84.579,0.59931924]
[1772814425974,0.14216157,84.629,84.581,0.59931924]
[1772814425975,0.28618221,84.626,84.581,0.59931924]
[1772814427867,0.28639949,84.649,84.584,0.59931924]
[1772814428071,11.8136282,84.648,84.589,0.59931924]
[1772814428282,10.969539,84.67,84.591,0.59931924]
[1772814428463,0.28639949,84.665,84.591,0.59931924]
[1772814428663,0.28650885,84.649,84.591,0.59931924]
[1772814429484,0.2866192,84.629,84.583,0.59931924]
[1772814429861,11.81642009,84.628,84.585,0.59931924]
[1772814430162,0.14216157,84.627,84.585,0.59931924]
[1772814430564,0.28671827,84.636,84.585,0.59931924]
[1772814430765,0.28671827,84.633,84.585,0.59931924]
[1772814431369,0.28671827,84.628,84.585,0.59931924]
[1772814431976,0.28671827,84.628,84.56,0.28432314]
[1772814431977,0.28681747,84.625,84.577,12.42275958]
[1772814432164,0.28681747,84.618,84.578,0.59931924]
[1772814432373,0.28681747,84.616,84.571,0.59931924]
[1772814432592,0.28692601,84.608,84.57,11.82440675]
[1772814433290,0.28692601,84.623,84.574,0.59931924]
[1772814433580,4.39067986,84.61,84.569,11.82462712]
[1772814433770,0.28702378,84.608,84.569,11.82462712]
[1772814433968,0.28702378,84.608,84.54,0.28432314]
[1772814433969,0.42918535,84.606,84.573,0.59931924]
[1772814434278,0.28702378,84.605,84.574,11.82396481]
[1772814435070,0.28702378,84.605,84.573,0.59931924]
[1772814435271,0.28702378,84.605,84.572,16.50037197]
[1772814435576,0.28702378,84.605,84.573,0.59931924]
[1772814435972,0.28702378,84.605,84.575,0.59931924]
[1772814435973,11.81977211,84.604,84.575,0.59931924]
[1772814436180,0.14216157,84.603,84.575,0.59931924]
[1772814436562,11.81851488,84.613,84.575,0.59931924]
[1772814437994,12.10591451,84.613,84.577,0.59931924]
[1772814438171,0.28739963,84.612,84.577,0.59931924]
[1772814438366,11.81795191,84.618,84.577,0.59931924]
[1772814438574,0.28739963,84.621,84.577,0.59931924]
[1772814438890,12.10389396,84.629,84.578,0.59931924]
[1772814439067,11.81572051,84.634,84.578,0.59931924]
[1772814439266,0.14216157,84.633,84.578,0.59931924]
[1772814440083,0.28758165,84.632,84.58,0.59931924]
[1772814441878,0.28775902,84.628,84.58,0.59931924]
[1772814442078,0.28775902,84.625,84.582,0.59931924]
[1772814442892,11.81655972,84.627,84.582,0.59931924]
[1772814443386,0.28785512,84.626,84.582,0.59931924]
[1772814443591,0.2879413,84.625,84.582,0.59931924]
[1772814443789,0.2879413,84.624,84.582,0.59931924]
[1772814444195,11.81711827,84.623,84.584,0.59931924]
[1772814445694,0.43027113,84.624,84.584,0.59931924]
[1772814445999,0.28810956,84.622,84.584,0.59931924]
[1772814446193,11.81739757,84.621,84.585,11.82242714]
[1772814446400,11.81739757,84.621,84.586,0.59931924]
[1772814446401,0.28810956,84.62,84.586,0.59931924]
[1772814446898,11.81739757,84.621,84.586,0.59931924]
[1772814447301,0.14216157,84.623,84.586,0.59931924]
[1772814447502,0.28819273,84.622,84.586,0.59931924]
[1772814448299,11.81739757,84.621,84.588,0.59931924]
[1772814448500,0.28819273,84.622,84.588,0.59931924]
[1772814448811,11.81652633,84.628,84.588,0.59931924]
[1772814449310,0.28835714,84.636,84.588,0.59931924]
[1772814449601,0.28432314,84.649,84.588,0.59931924]
[1772814449602,0.28843671,84.65,84.589,0.59931924]
[1772814450114,0.28843671,84.65,84.587,41.37751663]
[1772814450115,11.81320953,84.651,84.592,0.59931924]
[1772814450405,11.81223274,84.658,84.597,0.59931924]
[1772814450609,11.81111662,84.666,84.598,0.74148081]
[1772814450901,0.28850667,84.682,84.612,0.59931924]
[1772814451479,0.28850667,84.682,84.619,0.14216157]
[1772814451697,0.28850667,84.682,84.622,0.62048311]
[1772814451938,41.33069574,84.683,84.622,0.62048311]
[1772814452088,41.61935397,84.683,84.622,0.62048311]
[1772814452292,11.80776951,84.69,84.626,3.69383402]
[1772814452489,11.80776951,84.69,84.627,0.62048311]
[1772814452700,11.80776951,84.69,84.631,0.62048311]
[1772814453295,0.28872882,84.689,84.631,0.62048311]
[1772814454018,0.2887985,84.688,84.631,0.62048311]
[1772814454320,0.2887985,84.686,84.631,0.62048311]
[1772814454499,0.28886921,84.682,84.633,0.62048311]
[1772814454692,0.28886921,84.681,84.633,0.62048311]
[1772814454998,11.80846667,84.685,84.633,0.62048311]
[1772814455198,0.14216157,84.684,84.633,0.62048311]
[1772814456486,0.14216157,84.684,84.635,0.62048311]
[1772814456689,11.80763009,84.691,84.636,0.62048311]
[1772814457095,11.80763009,84.691,84.639,0.62048311]
[1772814457993,0.28892896,84.692,84.639,0.62048311]
[1772814458290,0.28907222,84.691,84.639,0.62048311]
[1772814458490,11.80776951,84.69,84.641,0.62048311]
[1772814458903,0.28907222,84.691,84.641,0.62048311]
[1772814459104,12.09680436,84.691,84.641,0.62048311]
[1772814459498,0.28913685,84.69,84.641,0.62048311]
[1772814460915,0.28926939,84.688,84.643,0.62048311]
[1772814461312,0.28926939,84.687,84.643,0.62048311]
[1772814461514,0.43149678,84.698,84.643,0.62048311]
[1772814461707,0.28933521,84.695,84.643,0.62048311]
[1772814461918,0.43149678,84.694,84.643,0.62048311]
[1772814462215,0.1,84.71,84.648,0.62048311]
[1772814462418,0.1,84.71,84.651,0.14216157]
[1772814462715,0.1,84.71,84.669,0.62048311]
[1772814463210,0.38948005,84.709,84.669,0.62048311]
[1772814463423,0.1,84.71,84.669,0.62048311]
[1772814464095,0.38962457,84.709,84.669,0.62048311]
[1772814464294,0.38962457,84.708,84.668,0.60428361]
[1772814464514,0.38962457,84.707,84.668,0.60428361]
[1772814464717,11.80553915,84.706,84.668,0.60428361]
[1772814464921,0.38976815,84.705,84.668,0.60428361]
[1772814465221,11.80553915,84.706,84.67,0.62048311]
[1772814465519,0.38992086,84.705,84.67,0.62048311]
[1772814466701,0.38992086,84.705,84.672,0.62048311]
[1772814467016,11.8058179,84.704,84.674,0.62048311]
[1772814467909,11.8058179,84.704,84.671,4.83129836]
[1772814467910,10.94388617,84.7,84.671,4.44109419]
[1772814468104,0.14216157,84.699,84.671,1.52e-06]
[1772814469005,0.14216157,84.689,84.671,1.52e-06]
[1772814469714,41.32280191,84.699,84.671,1.52e-06]
[1772814469906,0.42648471,84.698,84.671,1.52e-06]
[1772814470506,0.14216157,84.698,84.671,1.52e-06]
[1772814471324,0.64067548,84.708,84.671,5.97e-06]
[1772814472112,0.64067548,84.708,84.665,11.81125612]
[1772814472723,0.64067548,84.706,84.658,11.81223274]
[1772814472922,0.14216157,84.698,84.646,11.81390733]
[1772814473113,0.64067548,84.687,84.646,11.81390733]
[1772814473307,0.64067548,84.685,84.637,0.62048311]
[1772814473616,0.64067548,84.685,84.638,0.62048311]
[1772814474908,0.64067548,84.685,84.639,0.62048311]
[1772814475718,0.63943544,84.683,84.641,0.61249219]
[1772814475914,0.63943544,84.682,84.641,0.61249219]
[1772814476228,0.63943544,84.679,84.637,3.99986038]
[1772814476431,0.63943544,84.669,84.637,3.99986038]
[1772814476725,0.3928818,84.667,84.637,3.48214958]
[1772814476903,0.3928818,84.667,84.637,3.34812238]
[1772814478231,11.81111662,84.666,84.637,15.16322174]
[1772814478824,41.33890817,84.666,84.637,3.34812238]
[1772814483338,11.81111662,84.666,84.637,15.16323182]
[1772814483531,11.81111662,84.666,84.637,3.34812238]
[1772814483730,11.81111662,84.666,84.602,0.6987114]
[1772814483731,0.42648471,84.658,84.602,0.6987114]
[1772814484030,0.42648471,84.658,84.605,0.6488689]
[1772814484726,0.14216157,84.658,84.605,0.6488689]
[1772814485844,0.14216157,84.658,84.607,0.6488689]
[1772814486137,41.33988471,84.664,84.608,0.6488689]
[1772814486428,11.80958229,84.677,84.61,0.6488689]
[1772814486622,41.33353802,84.677,84.612,0.6488689]
[1772814486830,11.80958229,84.677,84.616,0.6488689]
[1772814487129,11.80958229,84.677,84.607,0.28432314]
[1772814487130,46.14416273,84.706,84.623,0.14216157]
[1772814487326,4.82477569,84.705,84.626,0.6488689]
[1772814487509,41.31938704,84.706,84.626,0.6488689]
[1772814487510,41.31938704,84.706,84.63,0.14216157]
[1772814487709,0.1,84.71,84.638,0.6488689]
[1772814487932,0.1,84.71,84.646,0.6488689]
[1772814488113,10.94388617,84.7,84.646,0.6488689]
[1772814488616,0.14216157,84.699,84.646,0.6488689]
[1772814490216,0.14216157,84.699,84.648,0.6488689]
[1772814490632,4.82477569,84.706,84.648,0.6488689]
[1772814490838,0.14216157,84.689,84.648,0.6488689]
[1772814491031,0.28432314,84.698,84.648,0.6488689]
[1772814491235,10.94388617,84.68,84.639,4.05028959]
[1772814491540,10.94388617,84.67,84.639,4.05028959]
[1772814491839,0.14216157,84.669,84.639,4.05028959]
[1772814492036,0.14216157,84.659,84.606,0.6488689]
[1772814492244,5.2512604,84.659,84.606,0.6488689]
[1772814492435,0.14216157,84.649,84.608,0.6488689]
[1772814492927,41.34281461,84.658,84.608,0.6488689]
[1772814494021,0.42648471,84.667,84.61,0.6488689]
[1772814494430,0.02041148,84.667,84.61,0.6488689]
[1772814494931,0.02041148,84.666,84.61,0.6488689]
[1772814495243,0.14216157,84.659,84.61,0.6488689]
[1772814495930,0.14216157,84.659,84.611,11.81879424]
[1772814496143,0.02096069,84.658,84.612,0.6488689]
[1772814497126,41.36042276,84.666,84.612,0.6488689]
[1772814497328,11.81111662,84.666,84.612,0.6488689]
[1772814497526,11.80874555,84.683,84.617,0.6488689]
[1772814497924,0.02205017,84.678,84.617,0.6488689]
[1772814498122,41.47472335,84.679,84.619,0.6488689]
[1772814498746,0.02258949,84.678,84.619,0.6488689]
[1772814500734,0.02361159,84.669,84.621,0.6488689]
[1772814500943,0.02361159,84.668,84.621,0.6488689]
[1772814501525,5.2512604,84.669,84.612,0.6488689]
[1772814501526,0.02361159,84.658,84.612,0.6488689]
[1772814501726,5.2512604,84.659,84.612,0.6488689]
[1772814501727,0.02412552,84.648,84.612,0.6488689]
[1772814502724,0.02412552,84.648,84.613,0.6488689]
[1772814504328,0.14216157,84.649,84.614,0.6488689]
[1772814504626,41.36844908,84.658,84.614,0.6488689]
[1772814504834,0.02563447,84.658,84.616,0.6488689]
[1772814505236,0.02563447,84.657,84.607,0.6488689]
[1772814506948,0.02659218,84.655,84.609,0.6488689]
[1772814507145,10.94388617,84.65,84.609,0.6488689]
[1772814507335,0.02659218,84.648,84.609,0.6488689]
[1772814509127,0.02755729,84.638,84.594,0.6488689]
[1772814509944,0.14216157,84.639,84.594,0.6488689]
[1772814510748,0.02850348,84.638,84.594,0.6488689]
[1772814510946,10.94388617,84.62,84.591,4.05174081]
[1772814511249,0.02850348,84.618,84.585,0.6488689]
[1772814514633,0.03076501,84.608,84.561,0.64799885]
[1772814515041,0.03076501,84.608,84.562,0.64799885]
[1772814515753,0.14216157,84.609,84.564,0.64799885]
[1772814515955,11.8179562,84.617,84.564,0.64799885]
[1772814516264,41.3628467,84.617,84.564,0.64799885]
[1772814516643,0.03161216,84.616,84.564,0.64799885]
[1772814517951,0.03161216,84.616,84.566,0.64799885]
[1772814518860,11.8179562,84.617,84.566,0.64799885]
[1772814519758,0.03285767,84.616,84.566,0.64799885]
[1772814520137,0.03285767,84.616,84.568,0.64799885]
[1772814521154,11.8179562,84.617,84.568,0.64799885]
[1772814522246,11.8179562,84.617,84.558,59.13043201]
[1772814522247,41.39115649,84.628,84.57,0.64799885]
[1772814522554,41.39155875,84.628,84.57,0.64799885]
[1772814522872,41.35747033,84.628,84.57,0.64799885]
[1772814523668,11.81642009,84.628,84.572,0.64799885]
[1772814523888,11.81642009,84.628,84.576,0.64799885]
[1772814524048,29.53460278,84.647,84.578,0.64799885]
[1772814524247,0.03448531,84.665,84.585,0.64799885]
[1772814524477,0.03448531,84.665,84.59,0.14216157]
[1772814524658,0.03448531,84.665,84.597,0.64799885]
[1772814525771,0.03527514,84.649,84.597,0.64799885]
[1772814526073,0.03527514,84.648,84.597,0.64799885]
[1772814526454,0.03527514,84.648,84.599,0.64799885]
[1772814526774,0.03564999,84.638,84.599,0.64799885]
[1772814528450,0.03602138,84.628,84.591,0.64799885]
[1772814528853,0.03639915,84.619,84.585,11.8222899]
[1772814529472,0.03639915,84.619,84.586,0.64799885]
[1772814529971,0.14216157,84.629,84.586,0.64799885]
[1772814530578,0.03677199,84.632,84.586,0.64799885]
[1772814530878,41.35307253,84.637,84.588,0.64799885]
[1772814531079,11.81516358,84.637,84.589,0.64799885]
[1772814531260,41.34379134,84.656,84.591,0.64799885]
[1772814531457,41.34379134,84.656,84.597,0.64799885]
[1772814532662,0.18002209,84.664,84.599,0.64799885]
[1772814532866,0.03786052,84.663,84.599,0.64799885]
[1772814534170,0.42648471,84.664,84.599,0.64799885]
[1772814534880,0.42648471,84.662,84.601,0.64799885]
[1772814536173,41.340373,84.663,84.607,0.64799885]
[1772814536879,0.03855712,84.664,84.609,0.64799885]
[1772814538484,0.03992156,84.658,84.609,0.64799885]
[1772814538892,0.03992156,84.658,84.61,11.81893393]
[1772814539060,0.03992156,84.658,84.611,0.64799885]
[1772814541175,0.03992156,84.658,84.613,0.64799885]
[1772814542686,0.04187306,84.657,84.613,0.64799885]
[1772814542888,0.04187306,84.648,84.613,0.64799885]
[1772814543989,11.81348864,84.649,84.614,0.64799885]
[1772814544196,0.04218378,84.648,84.614,0.64799885]
[1772814545564,0.04218378,84.648,84.616,0.64799885]
[1772814545765,0.04218378,84.648,84.608,0.64799885]
[1772814547587,0.04307613,84.646,84.601,0.64799885]
[1772814549676,0.04307613,84.646,84.603,0.64799885]
[1772814549677,0.04395691,84.644,84.603,0.64799885]
[1772814551893,0.04452785,84.642,84.603,0.64799885]
[1772814552392,0.04452785,84.642,84.605,0.64799885]
[1772814553489,41.34965265,84.644,84.605,0.64799885]
[1772814553683,0.04507642,84.643,84.605,0.64799885]
[1772814553889,0.04507642,84.639,84.605,0.64799885]
[1772814554075,0.04507642,84.638,84.605,0.64799885]
[1772814555899,11.81446563,84.642,84.605,0.64799885]
[1772814556093,11.81446563,84.642,84.607,0.64799885]
[1772814556904,0.28432314,84.659,84.607,0.64799885]
[1772814556905,0.14216157,84.648,84.607,0.64799885]
[1772814557195,0.0459026,84.647,84.607,0.64799885]
[1772814557893,0.0459026,84.647,84.608,11.81921331]
[1772814558093,0.0459026,84.647,84.609,0.64799885]
[1772814558595,0.04643092,84.647,84.609,0.64799885]
[1772814559971,0.04643092,84.647,84.611,0.64799885]
[1772814560175,0.14216157,84.649,84.611,0.64799885]
[1772814560578,0.0469456,84.648,84.611,0.64799885]
[1772814560783,0.0469456,84.638,84.602,0.64799885]
[1772814565198,0.0469456,84.638,84.604,0.64799885]
[1772814568102,0.0469456,84.638,84.606,0.64799885]
[1772814568299,0.0469456,84.638,84.599,0.64799885]
[1772814569908,0.0469456,84.638,84.601,0.64799885]
[1772814571091,0.04934039,84.637,84.601,0.64799885]
[1772814571790,0.04934039,84.637,84.602,11.82005153]
[1772814572047,0.14216157,84.638,84.603,0.65119481]
[1772814572304,4.38686364,84.65,84.602,11.82005153]
[1772814572305,0.04978376,84.668,84.604,0.65119481]
[1772814572683,0.05000121,84.664,84.604,0.65119481]
[1772814572889,0.05000121,84.662,84.604,0.65119481]
[1772814573501,0.05000121,84.668,84.606,0.65119481]
[1772814573702,0.19216278,84.668,84.606,0.65119481]
[1772814573901,0.05000121,84.668,84.606,0.65119481]
[1772814574107,0.19216278,84.668,84.608,0.28432314]
[1772814574295,0.05021482,84.667,84.609,0.65119481]
[1772814575306,0.05021482,84.667,84.611,0.65119481]
[1772814575506,0.05042829,84.648,84.611,0.65119481]
[1772814579293,0.05042829,84.648,84.581,3.69383402]
[1772814579294,0.05042829,84.648,84.613,0.65119481]